bitfinex-derivatives/quotes_BNBF0:USTF0_20250401
["timestamp","ask_amount","ask_price","bid_price","bid_amount"]
[1743506303343,1.064,608.32,608.17,0.27688988]
[1743506303646,1.064,608.32,608.18,0.27688988]
[1743506303850,1.064,608.32,608.17,0.27688988]
[1743506304042,1.064,608.32,608.18,0.27688988]
[1743506304343,1.064,608.32,608.19,0.27688988]
[1743506307149,1.064,608.32,608.2,0.32883919]
[1743506307350,1.064,608.32,608.21,0.27688988]
[1743506308753,2.639,608.61,608.21,0.27688988]
[1743506309547,1.884,608.61,608.21,0.27688988]
[1743506311453,0.702,608.61,608.21,0.27688988]
[1743506312348,0.702,608.61,608.21,0.60572367]
[1743506312553,0.702,608.61,608.22,0.60571826]
[1743506312854,0.702,608.61,608.23,0.27688988]
[1743506316555,0.702,608.61,608.24,0.32881757]
[1743506316754,0.702,608.61,608.25,0.27688988]
[1743506316954,0.702,608.61,608.26,0.32880676]
[1743506317150,0.702,608.61,608.27,0.27682972]
[1743506317458,0.702,608.61,608.27,0.60563107]
[1743506317760,0.702,608.61,608.28,0.27682972]
[1743506320257,0.702,608.61,608.27,0.32880135]
[1743506320459,0.702,608.61,608.28,0.2768385]
[1743506320660,0.702,608.61,608.29,0.32879054]
[1743506320856,0.749,608.74,608.3,0.2768385]
[1743506321967,0.749,608.74,608.31,0.27683836]
[1743506322265,0.749,608.74,608.29,0.32879054]
[1743506322464,0.749,608.74,608.3,0.27683836]
[1743506326068,0.749,608.74,608.31,0.32877973]
[1743506326269,0.749,608.74,608.32,0.27683836]
[1743506326469,0.749,608.74,608.33,0.32876892]
[1743506326667,0.749,608.74,608.34,0.27683836]
[1743506327068,0.749,608.74,608.35,0.32875811]
[1743506327267,0.749,608.74,608.36,0.27683836]
[1743506329571,1.532,608.76,608.36,0.60559107]
[1743506329773,1.532,608.76,608.37,0.27683836]
[1743506331675,1.532,608.76,608.38,0.60550829]
[1743506331867,1.532,608.76,608.39,0.27676639]
[1743506332580,0.727,608.76,608.39,0.27676639]
[1743506333376,0.727,608.76,608.4,0.32873109]
[1743506333580,0.727,608.76,608.41,0.27676639]
[1743506334171,0.696,608.83,608.41,0.27676639]
[1743506334775,0.696,608.83,608.4,0.32873109]
[1743506334973,0.696,608.83,608.41,0.276729]
[1743506335181,0.696,608.83,608.42,0.32872029]
[1743506335379,0.696,608.83,608.43,0.276729]
[1743506336382,0.696,608.83,608.42,0.32872029]
[1743506336680,0.696,608.83,608.44,0.32870948]
[1743506336882,0.696,608.83,608.45,0.27672437]
[1743506337279,0.696,608.83,608.46,0.32869868]
[1743506337476,0.696,608.83,608.47,0.27672437]
[1743506337683,0.696,608.83,608.48,0.32868787]
[1743506337877,0.696,608.83,608.49,0.27672437]
[1743506338180,0.696,608.83,608.5,0.60529987]
[1743506338382,0.696,608.83,608.51,0.2766228]
[1743506338775,0.696,608.83,608.52,0.32866627]
[1743506338984,0.751,608.92,608.53,0.2766228]
[1743506339477,0.751,608.92,608.53,0.60528367]
[1743506339685,0.751,608.92,608.54,0.2766228]
[1743506342382,0.751,608.92,608.55,0.27675216]
[1743506342581,0.751,608.92,608.54,0.27675216]
[1743506342789,0.751,608.92,608.55,0.27675216]
[1743506343084,0.751,608.92,608.56,0.27675216]
[1743506343286,0.751,608.92,608.54,0.27675216]
[1743506343586,0.751,608.92,608.55,0.60540222]
[1743506343786,0.751,608.92,608.56,0.60539682]
[1743506343980,0.751,608.92,608.57,0.32863926]
[1743506344179,0.751,608.92,608.58,0.27667931]
[1743506344381,0.751,608.92,608.58,0.60531317]
[1743506344584,0.751,608.92,608.59,0.60530777]
[1743506344784,0.751,608.92,608.6,0.60530237]
[1743506344986,0.751,608.92,608.61,0.60529697]
[1743506345186,0.751,608.92,608.62,0.60529158]
[1743506345382,0.751,608.92,608.63,0.60528618]
[1743506345585,0.751,608.92,608.64,0.60528078]
[1743506345887,0.751,608.92,608.65,0.60527538]
[1743506346088,0.751,608.92,608.66,0.60526998]
[1743506346285,0.751,608.92,608.67,0.27667931]
[1743506351995,0.751,608.92,608.68,0.27670074]
[1743506352200,0.751,608.92,608.66,0.32859067]
[1743506352390,0.751,608.92,608.67,0.27670245]
[1743506352791,0.751,608.92,608.66,0.32859067]
[1743506352990,0.751,608.92,608.67,0.27670355]
[1743506353795,0.751,608.92,608.66,0.32859067]
[1743506356595,1.135,608.95,608.66,0.32859067]
[1743506357393,1.135,608.95,608.67,0.2767165]
[1743506361500,1.135,608.95,608.66,0.32859067]
[1743506361700,1.135,608.95,608.67,0.27673905]
[1743506362203,1.135,608.95,608.66,0.32859067]
[1743506362602,1.135,608.95,608.08,0.772]
[1743506362802,1.135,608.95,608.1,0.32889327]
[1743506363102,1.135,608.95,608.11,0.2767696]
[1743506363403,1.135,608.95,608.13,0.32887704]
[1743506363603,1.135,608.95,608.14,0.2767696]
[1743506363797,1.135,608.95,608.16,0.32886082]
[1743506363999,1.135,608.95,608.17,0.2767696]
[1743506364195,1.135,608.95,608.18,0.32885001]
[1743506364403,1.135,608.95,608.19,0.2767696]
[1743506364604,1.135,608.95,608.2,0.32883919]
[1743506364905,1.135,608.95,608.21,0.2767696]
[1743506365103,1.135,608.95,608.22,0.32882838]
[1743506365302,1.135,608.95,608.23,0.2767696]
[1743506365995,1.135,608.95,608.24,0.32881757]
[1743506366202,1.135,608.95,608.25,0.2767696]
[1743506366398,1.135,608.95,608.26,0.60548098]
[1743506366602,1.135,608.95,608.27,0.60547557]
[1743506366898,2.089,608.95,608.28,0.60547016]
[1743506367104,2.089,608.95,608.29,0.60546476]
[1743506367299,2.089,608.95,608.3,0.27667422]
[1743506368109,2.089,608.95,608.31,0.60546281]
[1743506368301,2.089,608.95,608.32,0.6054574]
[1743506368499,2.089,608.95,608.33,0.27668308]
[1743506368700,2.089,608.95,608.34,0.27668308]
[1743506368900,2.089,608.95,608.35,0.27668308]
[1743506369104,2.089,608.95,608.36,0.60543579]
[1743506369305,2.089,608.95,608.37,0.60543038]
[1743506369505,2.089,608.95,608.38,0.60542498]
[1743506369802,2.089,608.95,608.39,0.60541958]
[1743506370001,2.089,608.95,608.4,0.60541417]
[1743506370200,2.089,608.95,608.41,0.60540877]
[1743506370406,2.089,608.95,608.42,0.60540337]
[1743506370601,2.089,608.95,608.43,0.60539796]
[1743506370805,2.089,608.95,608.44,0.60539256]
[1743506371006,0.954,608.95,608.45,0.60538716]
[1743506371203,0.954,608.95,608.46,0.60538176]
[1743506371401,0.954,608.95,608.47,0.60537635]
[1743506371603,0.954,608.95,608.48,0.60537095]
[1743506371811,0.954,608.95,608.49,0.60536555]
[1743506372005,0.954,608.95,608.5,0.60536015]
[1743506372207,0.954,608.95,608.51,0.27668308]
[1743506372404,0.954,608.95,608.51,0.60535475]
[1743506372608,0.954,608.95,608.52,0.27668308]
[1743506373009,0.954,608.95,608.53,0.32866087]
[1743506373210,0.954,608.95,608.54,0.27668308]
[1743506373511,0.954,608.95,608.55,0.60533314]
[1743506373811,0.954,608.95,608.56,0.27668308]
[1743506374506,0.954,608.95,608.55,0.32865006]
[1743506374712,0.954,608.95,608.56,0.27661393]
[1743506375109,0.954,608.95,608.57,0.32863926]
[1743506375411,0.954,608.95,608.58,0.27661393]
[1743506375610,0.954,608.95,608.59,0.32862846]
[1743506375806,1.034,609.09,608.6,0.27661393]
[1743506376008,1.034,609.09,608.61,0.32861766]
[1743506376208,1.034,609.09,608.62,0.27628724]
[1743506376408,1.034,609.09,608.63,0.32860687]
[1743506376710,1.034,609.09,608.64,0.27628724]
[1743506376905,1.034,609.09,608.65,0.32859607]
[1743506377107,1.034,609.09,608.66,0.27628724]
[1743506377304,1.034,609.09,608.67,0.32858527]
[1743506377609,1.034,609.09,608.68,0.27628724]
[1743506379214,1.034,609.09,608.69,0.32857447]
[1743506379514,1.034,609.09,608.7,0.27628724]
[1743506379715,1.034,609.09,608.71,0.32856368]
[1743506379914,1.034,609.09,608.72,0.27628724]
[1743506380109,1.034,609.09,608.73,0.32855288]
[1743506380313,1.034,609.09,608.74,0.27628724]
[1743506382716,1.034,609.09,608.75,0.27628051]
[1743506382917,1.034,609.09,608.74,0.27628051]
[1743506383217,1.034,609.09,608.73,0.32855288]
[1743506383418,1.034,609.09,608.74,0.2762827]
[1743506384312,1.034,609.09,608.73,0.32855288]
[1743506384518,1.034,609.09,608.74,0.276323]
[1743506392731,1.034,609.09,608.74,0.26846897]
[1743506393934,1.034,609.09,608.73,0.32855288]
[1743506394133,1.034,609.09,608.74,0.27666612]
[1743506395134,1.034,609.09,608.73,0.32855288]
[1743506395731,0.941,609.2,608.74,0.27629403]
[1743506395927,1.389,609.27,608.74,0.27629403]
[1743506398536,0.739,609.26,608.74,0.27629403]
[1743506398929,1.773,609.26,608.74,0.27629403]
[1743506401735,1.773,609.26,608.73,0.32855288]
[1743506401936,0.28573071,609.25,608.74,0.27635489]
[1743506405236,1.773,609.26,608.74,0.27635489]
[1743506405537,0.28572602,609.24,608.74,0.27635489]
[1743506406638,1.34832463,609.23,608.74,0.27635489]
[1743506406939,1.34835385,609.22,608.73,0.32855288]
[1743506407139,0.28572602,609.24,608.73,0.32855288]
[1743506407437,1.34836365,609.23,608.73,0.32855288]
[1743506407639,0.28572602,609.24,608.73,0.32855288]
[1743506407835,1.34815292,609.23,608.73,0.32855288]
[1743506408031,1.34815292,609.22,608.73,0.32855288]
[1743506408236,1.773,609.26,608.73,0.32855288]
[1743506408540,1.34802713,609.25,608.73,0.32855288]
[1743506408733,1.34802713,609.24,608.73,0.32855288]
[1743506409042,1.34802713,609.23,608.42,0.877]
[1743506409240,1.34802713,609.22,608.43,0.27644098]
[1743506409538,0.28581049,609.24,608.43,0.27644098]
[1743506409539,1.34802713,609.21,608.43,0.27644098]
[1743506409739,1.34802713,609.2,608.43,0.27644098]
[1743506409936,1.34802713,609.19,608.44,0.27644151]
[1743506410146,1.34802713,609.18,608.45,0.27644151]
[1743506410335,1.34689249,609.17,608.46,0.27644151]
[1743506410643,0.28581049,609.24,608.47,0.27644151]
[1743506410837,1.34689079,609.23,608.43,0.27644151]
[1743506411141,1.34689079,609.22,608.44,0.27644151]
[1743506411337,1.34689079,609.21,608.45,0.27644151]
[1743506411543,1.34689079,609.2,608.43,0.27644151]
[1743506411743,1.34689079,609.19,608.46,0.677]
[1743506411943,0.28581284,609.22,608.47,0.27644151]
[1743506412139,1.34669886,609.21,608.47,0.27644151]
[1743506412343,1.34669886,609.2,608.47,0.27644151]
[1743506412640,1.34669886,609.19,608.47,0.27644151]
[1743506412838,0.28581284,609.22,608.47,0.27644151]
[1743506413040,1.34644851,609.21,608.47,0.27644151]
[1743506413237,1.34644851,609.2,608.48,0.27644839]
[1743506413442,1.34644851,609.19,608.49,0.27644839]
[1743506413642,0.28581284,609.22,608.47,0.27644839]
[1743506413843,1.34613205,609.21,608.48,0.27644839]
[1743506414144,1.34613205,609.2,608.49,0.27644839]
[1743506414346,1.773,609.26,608.47,0.27644839]
[1743506414552,1.34584696,609.25,608.48,0.27644839]
[1743506414737,1.773,609.26,608.47,0.27644839]
[1743506415344,0.2857835,609.25,608.47,0.27644839]
[1743506415851,0.2857835,609.25,608.48,0.32868787]
[1743506416043,0.2857835,609.25,608.49,0.27644839]
[1743506416246,0.2857835,609.25,608.49,0.60513086]
[1743506416444,1.348,609.24,608.5,0.27638409]
[1743506417344,1.348,609.24,608.51,0.32867167]
[1743506417550,1.348,609.24,608.52,0.27638409]
[1743506417749,1.348,609.24,608.52,0.60505036]
[1743506417952,1.348,609.24,608.53,0.27638409]
[1743506418453,0.28575065,609.23,608.54,0.32865547]
[1743506418643,0.28575065,609.23,608.55,0.27638409]
[1743506419651,0.28575065,609.23,608.56,0.27635003]
[1743506419947,0.28575065,609.23,608.57,0.27635003]
[1743506420147,1.348,609.24,608.55,0.27635003]
[1743506420348,1.348,609.24,608.56,0.27635003]
[1743506420547,0.28575534,609.22,608.57,0.27635003]
[1743506420745,0.28575534,609.22,608.58,0.27635003]
[1743506420945,0.28575534,609.22,608.55,0.27635003]
[1743506421146,0.28575534,609.22,608.54,0.32865547]
[1743506421453,0.28575534,609.22,608.55,0.27635347]
[1743506421848,0.28575534,609.22,608.55,0.60500353]
[1743506422048,0.28575534,609.22,608.56,0.27635347]
[1743506422752,0.28575534,609.22,608.56,0.648]
[1743506422946,0.28575534,609.22,608.57,0.27635421]
[1743506423149,1.348,609.24,608.57,0.27635421]
[1743506423449,0.2857483,609.21,608.57,0.27635421]
[1743506427550,0.2857483,609.21,608.56,0.648]
[1743506427755,0.2857483,609.21,608.57,0.27640859]
[1743506428156,0.907,609.2,608.57,0.27640859]
[1743506429157,0.907,609.2,608.56,0.648]
[1743506429353,0.907,609.2,608.57,0.27640227]
[1743506429953,1.3463234,609.19,608.57,0.27640227]
[1743506430152,0.907,609.2,608.57,0.27640227]
[1743506430358,1.3463427,609.19,608.57,0.27640227]
[1743506430554,1.34607775,609.18,608.57,0.27640227]
[1743506430764,1.34607775,609.17,608.56,1.262]
[1743506430960,0.9,609.19,608.56,1.262]
[1743506431161,1.34603717,609.18,608.56,1.262]
[1743506431371,0.9,609.19,608.57,0.27645373]
[1743506431955,0.9,609.19,608.56,1.262]
[1743506432261,1.34551389,609.18,608.56,1.262]
[1743506432460,0.9,609.19,608.56,1.262]
[1743506432660,1.34533557,609.18,608.56,1.262]
[1743506432857,0.9,609.19,608.56,1.262]
[1743506433059,1.34533074,609.18,608.56,1.262]
[1743506433258,0.9,609.19,608.57,0.27646136]
[1743506433259,1.63115884,609.17,608.57,0.27646136]
[1743506433456,1.34533074,609.16,608.56,1.262]
[1743506433661,1.34533074,609.15,608.56,1.262]
[1743506433862,1.34533074,609.14,608.56,1.262]
[1743506434059,1.34533074,609.13,608.56,1.262]
[1743506434365,1.34533074,609.12,608.56,1.262]
[1743506434664,1.34533074,609.11,608.56,1.262]
[1743506434866,1.34533074,609.1,608.56,1.262]
[1743506435065,1.34533074,609.09,608.56,1.262]
[1743506435368,1.34533074,609.08,608.56,1.262]
[1743506435566,1.34533074,609.07,608.56,1.262]
[1743506435761,1.34533074,609.06,608.56,1.262]
[1743506435965,1.34533074,609.05,608.56,1.262]
[1743506436265,1.34533074,609.04,608.56,1.262]
[1743506436469,1.34533074,609.16,608.56,1.262]
[1743506436662,1.34533074,609.15,608.56,1.262]
[1743506436961,1.34533074,609.14,608.56,1.262]
[1743506437166,1.34533074,609.13,608.56,1.262]
[1743506437366,1.34533074,609.12,608.56,1.262]
[1743506437564,1.34533074,609.11,608.56,1.262]
[1743506437764,1.34210477,609.16,608.56,1.262]
[1743506437966,1.34210477,609.15,608.56,1.262]
[1743506438165,1.34210477,609.14,608.56,1.262]
[1743506438463,1.34210477,609.13,608.56,1.262]
[1743506438660,1.34210477,609.12,608.56,1.262]
[1743506438860,1.34210477,609.11,608.56,1.262]
[1743506439061,1.34210477,609.1,608.56,1.262]
[1743506439266,1.34210477,609.09,608.56,1.262]
[1743506439459,1.34210477,609.08,608.56,1.262]
[1743506439660,1.34210477,609.07,608.56,1.262]
[1743506439864,1.34210477,609.06,608.56,1.262]
[1743506440064,1.34210477,609.11,608.56,1.262]
[1743506440261,1.34210477,609.1,608.56,1.262]
[1743506440461,1.34210477,609.09,608.56,1.262]
[1743506440665,1.34210477,609.08,608.56,1.262]
[1743506440866,1.34210477,609.07,608.56,1.262]
[1743506441061,1.34210477,609.06,608.56,1.262]
[1743506441261,0.9,609.19,608.56,1.262]
[1743506441262,1.34210477,609.05,608.56,1.262]
[1743506441460,1.34210477,609.18,608.56,1.262]
[1743506441665,1.34210477,609.17,608.56,1.262]
[1743506441862,1.34210477,609.16,608.56,1.262]
[1743506442063,1.34210477,609.15,608.56,1.262]
[1743506442365,1.34210477,609.14,608.56,1.262]
[1743506442569,1.34210477,609.13,608.56,1.262]
[1743506442770,0.2858915,609.15,608.56,1.262]
[1743506442771,1.34210477,609.12,608.56,1.262]
[1743506442971,1.34210477,609.11,608.56,1.262]
[1743506443171,1.34210477,609.1,608.56,1.262]
[1743506443374,1.34210477,609.09,608.56,1.262]
[1743506443573,1.34210477,609.08,608.56,1.262]
[1743506443773,1.34210477,609.07,608.56,1.262]
[1743506443974,1.34210477,609.06,608.56,1.262]
[1743506444172,1.34210477,609.05,608.56,1.262]
[1743506444379,1.34210477,609.04,608.56,1.262]
[1743506444577,1.34210477,609.03,608.56,1.262]
[1743506444776,1.34210477,609.02,608.56,1.262]
[1743506444980,1.33872042,609.01,608.56,1.262]
[1743506445178,0.28587154,609.02,608.56,1.262]
[1743506447276,0.656,609.08,608.56,1.262]
[1743506447474,1.33847337,609.07,608.56,1.262]
[1743506447680,1.33847337,609.06,608.56,1.262]
[1743506447880,1.33847337,609.05,608.56,1.262]
[1743506448078,1.33847337,609.04,608.56,1.262]
[1743506448281,1.33847337,609.03,608.56,1.262]
[1743506448478,1.33847337,609.02,608.56,1.262]
[1743506448682,1.33841862,609.05,608.56,1.262]
[1743506448881,1.33841862,609.04,608.56,1.262]
[1743506449083,0.28586684,609.06,608.56,1.262]
[1743506449286,1.33844581,609.05,608.56,1.262]
[1743506449589,1.33844581,609.04,608.56,1.262]
[1743506449781,1.33844581,609.05,608.56,1.262]
[1743506450084,1.33844581,609.04,608.56,1.262]
[1743506450307,1.33834834,609.05,608.56,1.262]
[1743506450504,1.33834834,609.04,608.56,1.262]
[1743506450703,3.024,609.08,608.56,1.262]
[1743506450923,1.33837888,609.07,608.56,1.262]
[1743506451213,1.33837888,609.06,608.56,1.262]
[1743506451421,1.33837888,609.05,608.56,1.262]
[1743506451717,1.33837888,609.04,608.56,1.262]
[1743506451919,0.28586215,609.06,608.56,1.262]
[1743506452122,1.33812312,609.05,608.56,1.262]
[1743506452313,1.33812312,609.04,608.56,1.262]
[1743506452516,1.33812312,609.05,608.56,1.262]
[1743506452821,1.3382376,609.04,608.56,1.262]
[1743506453013,0.28586215,609.06,608.56,1.262]
[1743506453213,1.3380815,609.05,608.56,1.262]
[1743506453416,1.3380815,609.04,608.56,1.262]
[1743506453617,1.3380815,609.03,608.56,1.262]
[1743506453817,1.3380815,609.02,608.56,1.262]
[1743506454021,1.3380815,609.01,608.56,0.614]
[1743506454305,3.024,609.08,608.56,0.614]
[1743506454306,1.3380815,609.07,608.56,0.614]
[1743506454513,0.28588093,609.0,608.56,0.614]
[1743506455712,0.28588093,609.0,606.47,2.49922176]
[1743506455918,0.28588093,609.0,606.48,0.27654951]
[1743506456113,0.28588093,609.0,606.64,2.49922176]
[1743506456313,1.33822193,609.03,606.65,0.27654951]
[1743506456518,0.28613597,608.99,606.66,0.27654951]
[1743506456718,1.33798086,608.98,606.67,0.27654951]
[1743506456914,0.28613597,608.99,606.68,0.27654951]
[1743506457117,1.33780696,608.98,606.78,0.32960875]
[1743506457310,1.33780696,608.97,606.79,0.27654951]
[1743506457517,1.3379154,608.96,606.89,0.32954901]
[1743506457811,1.33788005,608.95,606.9,0.27654951]
[1743506458015,1.33788005,608.94,606.91,0.27654951]
[1743506458211,1.33788005,608.93,606.92,0.27654951]
[1743506458419,1.33793425,608.92,606.93,0.27654951]
[1743506458721,0.28613597,608.99,606.95,0.32951643]
[1743506458916,1.33793425,608.98,606.96,0.27654951]
[1743506459116,1.33793425,608.97,606.97,0.27654951]
[1743506459303,1.33793425,609.07,606.98,0.27654951]
[1743506459510,1.33793425,609.06,606.99,0.27654951]
[1743506459813,1.33793425,609.05,607.0,0.27654951]
[1743506460011,1.33793425,609.04,607.01,0.27665354]
[1743506460210,1.33793425,609.03,607.02,0.27665354]
[1743506460406,1.33768276,609.02,607.03,0.27665354]
[1743506460603,1.33768276,609.01,607.04,0.27665354]
[1743506460801,1.33768276,609.0,607.05,0.27665354]
[1743506461093,0.28611245,609.04,606.95,0.32951643]
[1743506461094,1.33768276,608.99,607.06,0.27665354]
[1743506461286,1.33768276,608.98,607.08,0.32944587]
[1743506461485,1.33768276,608.97,607.09,0.27665354]
[1743506461795,1.33735763,608.96,607.11,0.32942959]
[1743506461991,0.28611245,609.04,607.11,0.32942959]
[1743506461992,1.33735763,608.95,607.12,0.27665354]
[1743506462191,1.33735763,608.94,607.14,0.32941331]
[1743506462384,3.024,609.08,607.14,0.32941331]
[1743506462385,1.33735763,608.93,607.15,0.27665354]
[1743506462585,1.33735763,608.92,607.17,0.32939703]
[1743506462898,1.33735763,608.91,607.18,0.27668145]
[1743506463092,1.33735763,608.9,607.2,0.32938076]
[1743506463391,0.2861195,608.9,607.21,0.27668145]
[1743506463584,0.2861195,608.9,607.23,0.32936449]
[1743506463788,1.33735763,608.89,607.24,0.27668145]
[1743506463988,1.33735763,608.88,607.26,0.32934821]
[1743506464189,1.33735763,608.87,607.27,0.27668145]
[1743506464388,1.33735763,608.89,607.29,0.32933195]
[1743506464590,0.2861195,608.9,607.3,0.27670602]
[1743506464591,1.33735763,608.88,607.3,0.27670602]
[1743506464791,1.33735763,608.87,607.32,0.32931568]
[1743506464985,1.33735763,608.86,607.33,0.27670602]
[1743506465188,1.33735763,608.85,607.34,0.27670602]
[1743506465390,1.33735763,609.07,607.35,0.60600543]
[1743506465584,3.024,609.08,607.36,0.27670602]
[1743506465585,1.66386604,609.06,607.36,0.27670602]
[1743506465793,1.66387143,609.05,607.38,0.32928315]
[1743506465987,1.66387682,609.04,607.39,0.27670602]
[1743506466187,1.66387682,609.04,606.93,0.723]
[1743506466188,1.66388221,609.03,607.41,0.32926688]
[1743506466391,1.66388761,609.02,607.42,0.27670602]
[1743506466591,1.33549117,609.01,607.44,0.32925062]
[1743506466893,1.33549117,609.0,607.45,0.27670602]
[1743506467093,1.33549117,608.99,607.46,0.27670602]
[1743506467294,1.33549117,608.98,607.47,0.27670602]
[1743506467493,1.33549117,609.01,607.48,0.27670602]
[1743506467686,1.33549117,609.0,607.44,0.32925062]
[1743506467886,1.33549117,608.99,607.45,0.27674303]
[1743506468090,1.66390918,608.98,607.46,0.60598281]
[1743506468290,1.33549117,608.97,607.47,0.27674303]
[1743506468499,1.33549117,608.96,607.47,0.27674303]
[1743506468691,1.66392535,608.95,607.48,0.32922894]
[1743506468891,1.33549117,608.94,607.49,0.27674303]
[1743506469090,1.33549117,608.93,607.49,0.27674303]
[1743506469292,1.33549117,608.92,607.49,0.27674303]
[1743506469495,1.33549117,608.91,607.49,0.27674303]
[1743506469693,1.33549117,608.9,607.5,0.3292181]
[1743506469888,1.66395772,608.89,607.51,0.27674303]
[1743506470093,1.66396311,608.88,607.52,0.32920726]
[1743506470297,1.66396851,608.87,607.53,0.27674303]
[1743506470489,1.6639739,608.86,607.53,0.27674303]
[1743506470689,1.33549117,608.85,607.53,0.27674303]
[1743506470888,0.32848273,608.86,607.53,0.27674303]
[1743506471193,0.32849352,608.84,607.53,0.27674303]
[1743506471391,0.32849352,608.84,607.53,0.60594488]
[1743506471597,0.32849352,608.84,607.54,0.27674303]
[1743506471991,0.28612656,608.83,607.54,0.27674303]
[1743506472193,0.32850431,608.82,607.54,0.27674303]
[1743506472793,0.32850431,608.82,607.55,0.32919101]
[1743506473091,0.32850431,608.82,607.56,0.27674303]
[1743506473394,0.32850431,608.82,607.57,0.32918017]
[1743506473597,0.99950431,608.82,607.58,0.27674303]
[1743506473794,0.99950431,608.82,607.59,0.32916934]
[1743506473992,0.99950431,608.82,607.6,0.27674303]
[1743506474192,0.99950431,608.82,607.59,0.32916934]
[1743506474394,0.99950431,608.82,607.6,0.27678231]
[1743506474596,0.28611833,608.81,607.6,0.27678231]
[1743506474798,0.28611833,608.81,607.61,0.3291585]
[1743506474992,0.28611833,608.81,607.62,0.27678231]
[1743506476197,0.28611833,608.81,607.63,0.32914767]
[1743506476394,0.28611833,608.81,607.64,0.27678231]
[1743506476598,0.28611833,608.81,607.65,0.32913683]
[1743506476795,0.28611833,608.81,607.66,0.27678231]
[1743506476998,1.105,608.8,607.66,0.27678231]
[1743506477198,1.105,608.8,607.67,0.329126]
[1743506477595,1.105,608.8,607.68,0.27675284]
[1743506477795,1.105,608.8,607.69,0.32911517]
[1743506477996,1.105,608.8,607.7,0.27675284]
[1743506478900,1.105,608.8,607.71,0.32910434]
[1743506479302,1.105,608.8,607.72,0.27675284]
[1743506480697,1.105,608.8,607.71,0.32910434]
[1743506480897,2.21085559,608.79,607.72,0.27673493]
[1743506481101,1.33285559,608.78,607.72,0.27673493]
[1743506481401,1.33285559,608.77,607.72,0.27673493]
[1743506481596,1.33285559,608.76,607.72,0.27673493]
[1743506481803,1.33285559,608.77,607.72,0.27673493]
[1743506482003,1.33285559,608.76,607.72,0.27673493]
[1743506482203,1.33285559,608.75,607.72,0.27673493]
[1743506482399,1.33285559,608.74,607.72,0.27673493]
[1743506482601,1.33285559,608.73,607.72,0.27673493]
[1743506482803,1.33285559,608.72,607.72,0.27673493]
[1743506483100,1.33285559,608.71,607.72,0.27673493]
[1743506483403,1.33285559,608.7,607.72,0.27673493]
[1743506483605,1.33285559,608.69,607.72,0.27673493]
[1743506483906,1.33285559,608.69,607.71,0.32910434]
[1743506483907,1.33285559,608.68,607.71,0.32910434]
[1743506484105,1.33285559,608.67,607.72,0.27676492]
[1743506484305,1.33285559,608.66,607.72,0.27676492]
[1743506484598,1.33285559,608.65,607.72,0.27676492]
[1743506484804,1.33285559,608.64,607.72,0.27676492]
[1743506484998,1.33285559,608.63,607.72,0.27676492]
[1743506485202,1.33285559,608.62,607.72,0.27676492]
[1743506485402,1.33285559,608.61,607.72,0.27676492]
[1743506485602,0.28611598,608.71,607.72,0.27676492]
[1743506485603,1.33285559,608.6,607.72,0.27676492]
[1743506485804,1.33285559,608.59,607.72,0.27676492]
[1743506486004,1.33285559,608.58,607.72,0.27676492]
[1743506486304,1.3347369,608.57,607.72,0.27676492]
[1743506486605,1.3347369,608.56,607.72,0.27676492]
[1743506486806,0.666,608.75,607.72,0.27676492]
[1743506486807,1.3347369,608.55,607.72,0.27676492]
[1743506487105,1.3347369,608.54,607.71,0.32910434]
[1743506487299,1.3347369,608.53,607.72,0.27682747]
[1743506487498,0.286309,608.53,607.72,0.27682747]
[1743506488104,1.3347369,608.52,607.72,0.27682747]
[1743506488399,1.3347369,608.51,607.72,0.27682747]
[1743506488599,1.3347369,608.5,607.73,0.721]
[1743506488800,1.3347369,608.49,607.74,0.27682747]
[1743506488999,0.286309,608.53,607.74,0.27682747]
[1743506489204,1.3347369,608.73,607.74,0.27682747]
[1743506489398,1.3347369,608.72,607.74,0.27682747]
[1743506489605,1.66330058,608.71,607.74,0.27682747]
[1743506489801,1.3347369,608.7,607.74,0.27682747]
[1743506490104,1.3347369,608.69,607.74,0.27682747]